bitfinex/quotes_SOLUSD_20251201
["timestamp","ask_amount","ask_price","bid_price","bid_amount"]
[1764559038640,16.308864,126.85,126.79,21.01604556]
[1764559038940,19.808864,126.85,126.8,0.67]
[1764559039245,0.67,126.84,126.8,0.67]
[1764559039413,0.67,126.84,126.8,8.55635378]
[1764559040437,0.67,126.84,126.8,21.01587716]
[1764559040744,0.67,126.84,126.8,13.12952338]
[1764559041243,12.45952338,126.83,126.78,7.88767944]
[1764559041442,16.308864,126.81,126.76,8.55831172]
[1764559041617,28.76838738,126.81,126.76,7.88831172]
[1764559041952,29.43838738,126.81,126.77,0.67]
[1764559042239,32.93838738,126.83,126.78,12.45952338]
[1764559042749,32.93838738,126.83,126.75,27.71295542]
[1764559042750,20.478864,126.83,126.79,13.12952338]
[1764559042936,19.70732816,126.86,126.79,13.12952338]
[1764559042937,4.17,126.85,126.81,12.45952338]
[1764559043137,0.67,126.85,126.81,13.12952338]
[1764559043439,0.67,126.85,126.77,43.91791976]
[1764559043440,12.45952338,126.83,126.77,7.88830164]
[1764559043631,4.17,126.84,126.76,13.12952338]
[1764559043632,12.45952338,126.81,126.76,13.12952338]
[1764559043837,15.95952338,126.81,126.76,13.12952338]
[1764559044137,0.67,126.8,126.76,13.12952338]
[1764559044440,12.45952338,126.79,126.75,0.1]
[1764559044938,0.68,126.79,126.75,0.1]
[1764559045248,11.3863536,126.81,126.75,0.1]
[1764559045433,13.13952338,126.8,126.75,12.55952338]
[1764559045746,12.45952338,126.78,126.75,0.1]
[1764559046127,0.69,126.78,126.75,0.1]
[1764559046440,13.14952338,126.78,126.75,0.1]
[1764559046647,0.69,126.77,126.75,0.1]
[1764559047550,11.38755185,126.79,126.75,0.81]
[1764559047756,0.69,126.78,126.75,0.1]
[1764559048579,11.38755185,126.79,126.75,0.81]
[1764559048722,12.07755185,126.79,126.75,0.81]
[1764559048923,3.5,126.79,126.75,8.69938108]
[1764559049118,4.19,126.79,126.75,0.81]
[1764559049339,0.69,126.78,126.75,0.1]
[1764559049546,13.14952338,126.78,126.75,0.1]
[1764559049747,0.69,126.77,126.75,0.1]
[1764559050032,13.14952338,126.77,126.75,0.1]
[1764559050547,32.95838738,126.76,126.75,0.1]
[1764559050757,20.498864,126.76,126.75,0.1]
[1764559051349,4.19,126.76,126.75,0.1]
[1764559051547,3.5,126.76,126.75,0.1]
[1764559051729,19.808864,126.78,126.75,0.81]
[1764559051935,40.84609732,126.78,126.75,0.1]
[1764559052151,0.69,126.77,126.75,0.1]
[1764559054154,19.808864,126.78,126.75,0.1]
[1764559054338,20.498864,126.78,126.75,0.1]
[1764559054954,16.78480492,126.81,126.75,0.81]
[1764559055134,0.69,126.81,126.77,7.97486]
[1764559055347,4.19,126.85,126.79,7.97486]
[1764559055655,8.80994492,126.84,126.79,8.68486]
[1764559055830,17.47480492,126.84,126.79,8.68486]
[1764559056034,17.47480492,126.84,126.79,0.71]
[1764559056035,0.69,126.83,126.79,0.71]
[1764559056234,8.66486,126.83,126.79,0.71]
[1764559056435,8.66486,126.83,126.77,16.57297764]
[1764559056666,0.69,126.83,126.78,7.97486]
[1764559056848,19.808864,126.84,126.79,8.68486]
[1764559057241,20.498864,126.84,126.79,8.68486]
[1764559057441,0.69,126.83,126.79,8.68486]
[1764559057645,20.498864,126.84,126.8,8.68486]
[1764559057836,20.498864,126.84,126.8,16.57107591]
[1764559058158,19.808864,126.84,126.8,16.57107591]
[1764559058366,0.69,126.88,126.81,8.68486]
[1764559058668,11.47486,126.87,126.81,8.68486]
[1764559058836,7.97486,126.86,126.81,8.68486]
[1764559059032,8.66486,126.86,126.81,8.68486]
[1764559059234,0.69,126.85,126.81,8.68486]
[1764559059461,7.97486,126.86,126.82,0.71]
[1764559059832,8.66486,126.86,126.82,0.71]
[1764559060849,7.97486,126.84,126.79,7.88705733]
[1764559061051,11.47486,126.84,126.79,15.86191733]
[1764559061245,0.69,126.83,126.79,16.57191733]
[1764559061448,0.69,126.83,126.76,20.43224781]
[1764559061449,7.97486,126.82,126.76,20.43224781]
[1764559061646,3.5,126.81,126.77,7.88830164]
[1764559061962,28.473724,126.84,126.79,7.97486]
[1764559062163,20.498864,126.84,126.79,15.86190197]
[1764559062460,12.16486,126.86,126.81,7.97486]
[1764559062641,12.16486,126.86,126.81,8.68486]
[1764559062836,3.5,126.86,126.82,8.68486]
[1764559063350,4.19,126.86,126.82,8.68486]
[1764559063582,4.19,126.86,126.82,8.59515634]
[1764559064259,12.16486,126.86,126.82,8.59515634]
[1764559064467,4.19,126.86,126.82,8.59515634]
[1764559064844,12.16486,126.86,126.82,8.59515634]
[1764559066366,11.47486,126.86,126.81,7.88581342]
[1764559066566,8.66486,126.85,126.8,16.57108045]
[1764559066864,0.69,126.85,126.8,16.57108045]
[1764559067163,11.47486,126.86,126.81,8.68486]
[1764559067343,0.69,126.85,126.81,0.71]
[1764559067539,12.16486,126.86,126.81,8.68486]
[1764559068155,7.97486,126.86,126.82,8.59519161]
[1764559068356,8.66486,126.88,126.83,7.97486]
[1764559068760,0.69,126.87,126.83,0.71]
[1764559069141,0.69,126.87,126.83,8.68486]
[1764559069538,0.69,126.89,126.84,8.68486]
[1764559069748,11.47486,126.9,126.85,7.97486]
[1764559069952,11.47486,126.9,126.85,8.68486]
[1764559070152,11.47486,126.9,126.85,0.71]
[1764559070153,12.16486,126.9,126.85,0.71]
[1764559070353,12.16486,126.9,126.85,8.59271178]
[1764559070553,28.473724,126.9,126.85,8.59271178]
[1764559071150,0.69,126.89,126.85,8.59271178]
[1764559071345,8.66486,126.89,126.84,61.5]
[1764559071560,7.97486,126.87,126.84,61.5]
[1764559071870,7.97486,126.86,126.82,7.88519161]
[1764559072070,8.66486,126.86,126.82,8.59519161]
[1764559073158,8.66486,126.86,126.82,0.71]
[1764559073468,11.38220588,126.87,126.81,19.36061784]
[1764559073675,8.66486,126.85,126.81,11.38575784]
[1764559074154,8.66486,126.85,126.81,12.09575784]
[1764559074353,8.66486,126.85,126.82,0.71]
[1764559074846,0.69,126.85,126.82,8.59512693]
[1764559075471,7.97486,126.84,126.8,7.88643533]
[1764559075660,8.66486,126.85,126.81,0.72]
[1764559076758,8.66486,126.85,126.81,8.60551135]
[1764559076966,8.64486,126.84,126.79,7.97486]
[1764559077280,8.64486,126.84,126.81,0.72]
[1764559077454,8.64486,126.84,126.79,89.10470067]
[1764559077664,8.64486,126.84,126.8,0.72]
[1764559077853,7.97486,126.84,126.8,0.72]
[1764559078371,8.64486,126.84,126.8,0.72]
[1764559078742,8.64486,126.83,126.8,61.5]
[1764559079174,0.67,126.82,126.8,61.5]
[1764559079374,7.97486,126.81,126.76,7.88892395]
[1764559079557,7.97486,126.79,126.75,8.70940185]
[1764559079958,8.64486,126.79,126.75,8.70940185]
[1764559080155,16.308864,126.81,126.75,7.98940185]
[1764559080371,24.283724,126.8,126.76,0.72]
[1764559080574,24.953724,126.8,126.75,7.98940185]
[1764559080878,8.64486,126.79,126.75,8.70940185]
[1764559081252,0.67,126.79,126.75,8.70940185]
[1764559081480,8.64486,126.79,126.75,8.70940185]
[1764559081674,7.97486,126.8,126.76,0.72]
[1764559081875,8.64486,126.8,126.76,8.60874117]
[1764559082166,11.38597971,126.81,126.77,0.72]
[1764559082167,3.5,126.81,126.77,0.72]
[1764559082348,19.808864,126.82,126.77,8.69486]
[1764559082548,3.5,126.82,126.78,7.97486]
[1764559082753,3.5,126.82,126.78,8.69486]
[1764559083051,3.5,126.82,126.79,0.72]
[1764559083769,3.5,126.82,126.79,8.60681301]
[1764559083977,0.67,126.81,126.77,0.72]
[1764559084453,7.97486,126.8,126.77,7.88830164]
[1764559084975,8.64486,126.8,126.77,7.88830164]
[1764559085552,8.64486,126.8,126.77,69.38830164]
[1764559086099,15.86077861,126.81,126.77,8.60830164]
[1764559086376,16.53077861,126.81,126.77,7.88830164]
[1764559086763,0.67,126.81,126.78,0.72]
[1764559087069,0.67,126.81,126.77,8.60830164]
[1764559087775,8.64486,126.81,126.77,8.60830164]
[1764559088079,0.67,126.84,126.79,7.97486]
[1764559088255,4.17,126.84,126.8,7.97486]
[1764559088448,4.17,126.84,126.8,8.69486]
[1764559088852,3.5,126.84,126.81,0.72]
[1764559089086,3.5,126.84,126.81,8.69486]
[1764559089281,3.5,126.84,126.82,0.72]
[1764559090383,3.5,126.84,126.81,15.86013222]
[1764559090562,3.5,126.84,126.8,7.88601905]
[1764559090754,8.80994492,126.88,126.83,7.97486]
[1764559090960,1.3470164,126.91,126.87,7.97486]
[1764559091354,1.3470164,126.91,126.87,8.69486]
[1764559091560,1.3470164,126.91,126.87,0.72]
[1764559091975,1.3470164,126.91,126.87,8.69486]
[1764559092172,1.3470164,126.91,126.88,7.88146279]
[1764559092583,0.6770164,126.91,126.9,7.97486]
[1764559092889,12.14486,126.98,126.9,11.47486]
[1764559093064,12.14486,126.98,126.93,7.97486]
[1764559093263,0.67,126.98,126.94,7.97486]
[1764559093613,7.97486,126.99,126.94,7.97486]
[1764559093882,7.97486,126.99,126.94,8.26486]
[1764559093883,0.67,126.99,126.94,8.26486]
[1764559094075,0.2,127.0,126.97,7.87565034]
[1764559094257,0.2,127.0,126.98,7.97486]
[1764559094458,0.2,127.0,126.99,7.97486]
[1764559094662,0.2,127.0,126.99,8.26486]
[1764559095484,0.2,127.0,126.99,17.07480492]
[1764559096061,1e-08,127.0,126.99,24.94944071]
[1764559097694,0.2,127.02,127.0,8.80994492]
[1764559097866,0.2,127.02,127.01,11.47486]
[1764559097867,1e-08,127.02,127.01,11.47486]
[1764559098066,1e-08,127.02,127.01,11.76486]
[1764559098272,1e-08,127.02,127.01,19.63825579]
[1764559098474,1e-08,127.02,127.01,28.44820071]
[1764559099394,1e-08,127.02,127.01,25.40880892]
[1764559099691,1e-08,127.02,127.01,44.75706471]
[1764559100076,1e-08,127.02,127.01,36.78220471]
[1764559100300,1e-08,127.02,127.01,44.75706471]
[1764559100789,1e-08,127.02,127.01,36.78220471]
[1764559100991,1e-08,127.02,127.01,44.75706471]
[1764559101579,1e-08,127.02,127.01,41.25706471]
[1764559101917,1e-08,127.02,127.01,24.94820071]
[1764559102674,1e-08,127.02,127.01,41.25706471]
[1764559104683,0.2,127.07,127.05,16.308864]
[1764559104976,0.2,127.07,127.06,11.47486]
[1764559105699,0.88,127.07,127.05,7.97486]
[1764559106072,0.68,127.06,127.03,11.47486]
[1764559106901,0.2,127.07,127.05,7.97486]
[1764559107197,0.2,127.07,127.06,7.97486]
[1764559107496,0.2,127.07,127.06,11.47486]
[1764559108295,0.2,127.07,127.06,11.76486]
[1764559108699,0.2,127.07,127.06,11.47486]
[1764559108885,0.2,127.07,127.06,19.34515749]
[1764559109492,0.2,127.07,127.06,28.44510241]
[1764559110382,0.2,127.07,127.06,44.75396641]
[1764559110581,1e-08,127.07,127.06,44.75396641]
[1764559111185,1e-08,127.07,127.06,36.77910641]
[1764559111390,1e-08,127.07,127.06,44.75396641]
[1764559111988,1e-08,127.07,127.06,44.46396641]
[1764559112185,1e-08,127.07,127.06,44.75396641]
[1764559114300,0.2,127.14,127.09,16.308864]
[1764559114500,0.2,127.14,127.1,3.5]
[1764559114501,0.68,127.13,127.1,3.5]
[1764559114686,0.68,127.13,127.09,7.97486]
[1764559114888,0.68,127.13,127.09,15.84274035]
[1764559116506,0.68,127.13,127.09,20.29550131]
[1764559116808,0.2,127.14,127.12,12.42762096]
[1764559117109,0.88,127.14,127.13,20.29358493]
[1764559117308,0.88,127.14,127.12,20.29397577]
[1764559117511,0.68,127.13,127.12,20.29397577]
[1764559117685,0.88,127.14,127.12,20.29397577]
[1764559117884,0.88,127.14,127.13,12.42762096]
[1764559118289,0.2,127.14,127.13,12.42762096]
[1764559119105,0.2,127.14,127.13,20.29358493]
[1764559119819,0.88,127.16,127.13,20.29358493]
[1764559119820,0.2,127.16,127.13,49.05843978]
[1764559119988,0.2,127.18,127.16,8.80994492]
[1764559120190,0.2,127.18,127.17,37.16518684]
[1764559120383,0.2,127.19,127.18,8.80994492]
[1764559120616,0.2,127.19,127.18,21.23756588]
[1764559120988,0.2,127.19,127.18,45.4093014]
[1764559121186,0.2,127.2,127.18,45.4993014]
[1764559121410,0.2,127.21,127.2,8.80994492]
[1764559121611,0.11,127.22,127.21,25.11880892]
[1764559121806,0.2,127.25,127.21,41.04642988]
[1764559122121,0.2,127.25,127.24,37.54642988]
[1764559122295,0.2,127.25,127.24,41.04642988]
[1764559122811,0.2,127.25,127.24,48.90559366]
[1764559124205,0.68,127.28,127.25,8.80994492]
[1764559124407,0.68,127.28,127.24,68.55350312]
[1764559124408,0.68,127.28,127.26,3.5]
[1764559124608,0.68,127.28,127.25,12.42762096]
[1764559124987,0.68,127.28,127.26,12.42762096]
[1764559125711,0.68,127.28,127.24,43.4346942]
[1764559126096,0.68,127.28,127.27,12.42762096]
[1764559126310,16.308864,127.31,127.27,20.28493218]
[1764559126311,0.68,127.31,127.27,20.28493218]
[1764559126491,0.68,127.3,127.29,12.42762096]
[1764559126686,0.68,127.3,127.27,7.85731122]
[1764559127189,0.68,127.3,127.28,12.42762096]
[1764559127398,0.68,127.3,127.27,32.07089903]
[1764559127605,0.68,127.3,127.28,7.85647679]
[1764559128115,0.68,127.3,127.28,20.28409775]
[1764559128313,0.68,127.32,127.29,12.42762096]
[1764559128514,0.88,127.34,127.31,12.42762096]
[1764559128706,0.88,127.34,127.32,12.42762096]
[1764559129023,0.88,127.34,127.33,12.42762096]
[1764559129322,0.68,127.33,127.3,3.5]
[1764559129504,0.68,127.33,127.32,12.42762096]
[1764559129906,0.68,127.33,127.31,20.28246347]
[1764559130925,0.68,127.33,127.31,12.42762096]
[1764559131151,0.68,127.33,127.25,8.80994492]
[1764559131425,0.68,127.33,127.29,12.42762096]
[1764559131812,20.9613983,127.33,127.29,12.42762096]
[1764559132008,0.68,127.32,127.29,12.42762096]
[1764559132210,0.68,127.32,127.28,12.42762096]
[1764559132522,13.10762096,127.32,127.28,12.42762096]
[1764559132702,13.10762096,127.32,127.28,20.28423308]
[1764559132902,0.68,127.31,127.28,12.42762096]
[1764559133204,0.68,127.31,127.27,7.85720216]
[1764559133407,0.68,127.31,127.27,20.28482312]
[1764559133808,12.42762096,127.3,127.25,12.42762096]
[1764559134304,12.42762096,127.27,127.22,12.42762096]
[1764559134504,12.42762096,127.28,127.23,12.42762096]
[1764559134714,20.96434351,127.28,127.23,20.28735119]
[1764559134908,20.96434351,127.28,127.23,7.85973023]
[1764559134909,0.68,127.27,127.23,7.85973023]
[1764559135115,13.10762096,127.27,127.23,7.85973023]
[1764559135511,0.68,127.26,127.23,7.85973023]
[1764559136110,0.68,127.26,127.23,20.28735119]
[1764559136432,0.68,127.26,127.23,39.93680493]
[1764559137329,0.68,127.26,127.24,12.42762096]
[1764559138028,0.68,127.26,127.21,3.5]
[1764559138029,0.68,127.26,127.22,12.42762096]
[1764559138231,3.5,127.29,127.25,12.42762096]
[1764559138420,0.72,127.26,127.25,12.42762096]
[1764559138729,0.72,127.26,127.24,12.42762096]
[1764559138922,0.72,127.26,127.24,7.85908141]
[1764559139429,0.72,127.26,127.22,12.42762096]
[1764559139611,0.72,127.26,127.22,20.28779285]
[1764559140019,12.42762096,127.23,127.17,19.65797205]
[1764559140223,12.42762096,127.23,127.18,20.29049248]
[1764559140538,13.14762096,127.22,127.17,7.86323617]
[1764559140743,29.45648496,127.21,127.16,20.29172917]
[1764559141035,20.528864,127.21,127.18,12.42762096]
[1764559141240,0.72,127.2,127.18,12.42762096]
[1764559141439,0.72,127.2,127.16,20.29172917]
[1764559141622,13.14762096,127.2,127.16,7.86410821]
[1764559141940,16.308864,127.17,127.12,7.86658275]
[1764559142137,32.23648496,127.17,127.12,20.29420371]
[1764559142437,0.72,127.16,127.12,20.29420371]
[1764559142632,0.72,127.16,127.13,12.42762096]
[1764559142839,0.72,127.16,127.14,12.42762096]
[1764559143040,0.72,127.16,127.13,7.8654331]
[1764559143227,0.72,127.16,127.14,12.42762096]
[1764559144226,7.86180789,127.2,127.15,12.42762096]
[1764559144434,0.72,127.18,127.16,12.42762096]
[1764559144820,0.72,127.18,127.16,7.86367232]
[1764559145016,0.72,127.18,127.16,20.29129328]
[1764559145416,0.72,127.18,127.15,20.29221013]
[1764559145625,12.42762096,127.16,127.13,7.86551073]
[1764559145824,0.72,127.15,127.12,12.42762096]
[1764559146157,0.72,127.15,127.11,20.29438959]
[1764559146746,0.72,127.15,127.11,7.86676863]
[1764559147242,0.72,127.15,127.12,12.42762096]
[1764559148626,0.72,127.15,127.13,12.42762096]
[1764559149029,20.528864,127.17,127.12,7.86629173]
[1764559149228,0.72,127.16,127.15,12.42762096]
[1764559150042,0.72,127.16,127.1,27.53737214]
[1764559150334,0.72,127.16,127.14,12.42762096]
[1764559150719,0.72,127.16,127.1,89.03737214]
[1764559150922,8.58419426,127.16,127.1,89.03737214]
[1764559151153,8.58419426,127.16,127.12,12.42762096]
[1764559151455,0.72,127.15,127.13,12.42762096]
[1764559151954,0.72,127.15,127.1,27.53737214]
[1764559152159,20.528864,127.17,127.14,12.42762096]
[1764559152318,0.72,127.16,127.15,12.42762096]
[1764559152945,1.99999999,127.16,127.15,12.42762096]
[1764559153438,1.99999999,127.17,127.15,12.42762096]
[1764559153748,1.99999999,127.17,127.16,12.42762096]
[1764559154135,1.99999999,127.17,127.16,20.29172917]
[1764559154646,2.71999999,127.17,127.15,7.86455946]
[1764559154842,1.99999999,127.17,127.16,12.42762096]
[1764559155353,2.71999999,127.17,127.16,12.42762096]
[1764559156227,2.71999999,127.17,127.16,20.29172917]
[1764559156424,1.99999999,127.13,127.12,12.42762096]
[1764559156661,1.99999999,127.11,127.06,3.5]
[1764559156830,1.99999999,127.11,127.07,8.80994492]
[1764559157024,1.99999999,127.14,127.07,8.80994492]
[1764559157856,1.99999999,127.14,127.13,12.42762096]
[1764559158241,2.71999999,127.14,127.13,12.42762096]
[1764559158436,2.71999999,127.14,127.13,20.29358493]
[1764559158635,2.71999999,127.14,127.13,12.42762096]
[1764559158837,1.99999999,127.12,127.1,7.86757945]
[1764559159161,1.99999999,127.12,127.11,12.42762096]
[1764559159365,1.99999999,127.13,127.1,7.86757945]
[1764559159566,2.71999999,127.12,127.1,7.86757945]
[1764559160157,1.99999999,127.12,127.1,7.86757945]
[1764559160451,2.71999999,127.12,127.09,27.53870724]
[1764559160734,0.72,127.11,127.09,27.53870724]
[1764559161175,1.99999999,127.12,127.09,27.53870724]
[1764559161342,2.71999999,127.12,127.09,27.53870724]
[1764559161856,2.71999999,127.12,127.11,12.42762096]
[1764559162374,1.99999999,127.12,127.11,20.29482259]
[1764559165258,1.99999999,127.13,127.11,20.29482259]
[1764559165463,1.99999999,127.12,127.11,7.86720163]
[1764559165957,2.65999999,127.12,127.11,7.86720163]
[1764559166660,2.65999999,127.12,127.1,12.42762096]
[1764559166863,0.66,127.11,127.1,12.42762096]
[1764559167352,1.99999999,127.1,127.08,27.54098017]
[1764559167537,1.99999999,127.1,127.09,12.42762096]
[1764559167857,1.99999999,127.09,127.08,20.29667982]
[1764559168064,1.99999999,127.09,127.07,7.869464]
[1764559168273,1.99999999,127.06,127.05,20.29853792]
[1764559168862,2.65999999,127.06,127.05,20.29853792]
[1764559169059,1.99999999,127.04,127.02,19.68121826]
[1764559169244,1.99999999,127.04,127.03,12.42762096]
[1764559169559,1.99999999,127.02,127.01,20.30101675]
[1764559170471,2.65999999,127.03,127.01,20.30101675]
[1764559170777,1.99999999,127.03,126.98,27.5633958]
[1764559171076,1.99999999,127.02,126.98,27.5633958]
[1764559171365,1.99999999,127.03,126.98,27.5633958]
[1764559171744,1.99999999,127.03,127.02,12.42762096]
[1764559172369,1.99999999,127.05,127.02,12.42762096]
[1764559172766,1.99999999,127.05,127.04,12.42762096]
[1764559173070,2.65999999,127.05,127.04,12.42762096]
[1764559173375,1.99999999,127.05,127.04,12.42762096]
[1764559174259,1.99999999,127.05,127.04,20.29915748]
[1764559175874,2.65999999,127.05,127.04,12.42762096]
[1764559176245,1.99999999,127.04,126.98,19.68724715]
[1764559176445,1.99999999,127.0,126.99,12.42762096]
[1764559176749,1.99999999,127.0,126.96,12.62762096]
[1764559176750,1.99999999,126.97,126.96,12.62762096]
[1764559176973,1.99999999,126.97,126.96,0.2]
[1764559177156,22.46886399,126.97,126.96,0.2]
[1764559177360,18.96886399,126.97,126.96,0.2]
[1764559177687,22.46886399,126.97,126.96,0.2]
[1764559177883,34.89648495,126.97,126.94,0.2]
[1764559178175,1.99999999,126.92,126.91,12.42762096]
[1764559178376,1.99999999,126.91,126.9,7.95595769]
[1764559178776,16.968864,126.94,126.9,7.95595769]
[1764559178777,1.99999999,126.92,126.9,7.95595769]
[1764559179081,0.66,126.94,126.91,7.95595769]
[1764559179082,1.99999999,126.93,126.91,7.95595769]
[1764559179281,1.99999999,126.93,126.92,7.95595769]
[1764559180288,1.99999999,126.94,126.93,7.87835815]
[1764559180483,1.99999999,126.94,126.93,15.83431584]
[1764559181190,2.65999999,126.94,126.92,7.95595769]
[1764559181356,1.99999999,126.92,126.91,7.87940333]
[1764559181673,1.99999999,126.92,126.91,15.83536102]
[1764559181982,2.65999999,126.92,126.91,15.83536102]
[1764559182168,1.99999999,126.92,126.91,7.87940333]
[1764559182373,1.99999999,126.92,126.91,7.95595769]
[1764559183069,1.99999999,126.95,126.91,8.35595769]
[1764559183255,1.99999999,126.95,126.94,7.95595769]
[1764559183456,1.99999999,126.94,126.9,27.98077225]
[1764559183656,1.99999999,126.93,126.9,27.98077225]
[1764559184557,1.99999999,126.94,126.9,27.98077225]
[1764559184763,1.99999999,126.94,126.93,15.83431584]
[1764559185178,1.99999999,126.93,126.92,7.95595769]
[1764559185368,1.99999999,126.91,126.89,8.0803463]
[1764559185563,18.30886399,126.9,126.89,0.2]
[1764559185760,15.30886399,126.9,126.89,0.2]
[1764559185981,8.61595769,126.9,126.88,0.1]
[1764559186190,4.18,126.89,126.88,0.1]
[1764559186369,4.18,126.89,126.85,15.83866834]
[1764559186565,0.66,126.88,126.84,7.95595769]
[1764559186765,8.54158853,126.88,126.85,7.95595769]
[1764559186960,8.54158853,126.88,126.84,7.95595769]
[1764559187169,4.18,126.87,126.84,7.95595769]
[1764559187376,4.18,126.87,126.83,7.88395648]
[1764559187580,0.66,126.86,126.84,7.95595769]
[1764559187778,16.308864,126.84,126.79,19.71747554]
[1764559187982,16.308864,126.84,126.82,7.95595769]
[1764559188185,16.308864,126.84,126.83,7.95595769]
[1764559188590,16.308864,126.85,126.83,7.95595769]
[1764559188869,28.37042705,126.88,126.84,7.95595769]
[1764559189173,36.46651936,126.9,126.84,0.69]
[1764559189174,0.66,126.9,126.84,0.69]
[1764559189491,16.308864,126.89,126.84,0.69]
[1764559189881,0.66,126.9,126.84,0.69]
[1764559190081,3.52,126.93,126.89,7.95595769]
[1764559190285,4.18,126.93,126.91,7.95595769]
[1764559190497,4.18,126.94,126.92,7.95595769]
[1764559190676,0.66,126.94,126.93,7.95595769]
[1764559191276,0.66,126.96,126.93,7.95595769]
[1764559191475,16.308864,126.95,126.91,19.69820239]
[1764559191693,16.308864,126.94,126.92,7.95595769]
[1764559192068,0.66,126.93,126.88,19.35724278]
[1764559192269,16.968864,126.95,126.92,7.95595769]
[1764559192480,0.66,126.95,126.94,7.95595769]
[1764559192771,3.52,126.96,126.94,15.83365333]
[1764559192973,3.52,126.98,126.95,7.95595769]
[1764559193186,16.308864,126.95,126.82,1.99999999]
[1764559193382,24.26482169,126.97,126.89,7.88069259]
[1764559193583,24.92482169,126.97,126.92,7.95595769]
[1764559193782,16.308864,126.94,126.92,7.95595769]
[1764559194079,16.308864,126.95,126.93,7.95595769]
[1764559194278,16.308864,126.95,126.94,7.95595769]
[1764559194487,0.66,126.96,126.94,7.95595769]
[1764559194801,0.66,126.96,126.95,7.95595769]
[1764559195583,4.18,126.96,126.95,7.95595769]
[1764559195785,4.18,126.96,126.94,7.95595769]
[1764559195987,0.72,126.95,126.94,7.95595769]
[1764559196694,3.52,126.96,126.94,7.95595769]
[1764559196695,16.308864,126.96,126.94,7.95595769]
[1764559196885,4.24,126.98,126.95,7.95595769]
[1764559197092,20.548864,126.98,126.96,7.95595769]
[1764559197284,20.548864,126.98,126.97,7.95595769]
[1764559197473,17.028864,126.98,126.97,7.95595769]
[1764559198387,16.308864,126.98,126.97,7.95595769]
[1764559198592,17.028864,126.98,126.97,7.95595769]
[1764559199095,0.72,126.98,126.95,7.95595769]
[1764559199396,4.24,126.97,126.95,7.95595769]
[1764559200093,0.72,126.96,126.95,7.95595769]
[1764559200303,0.72,126.96,126.92,27.57569853]
[1764559200485,0.72,126.96,126.94,7.95595769]
[1764559201196,0.72,126.96,126.95,7.95595769]
[1764559201397,43.95211064,126.99,126.95,7.95595769]
[1764559201398,16.308864,126.99,126.95,7.95595769]
[1764559201600,3.52,126.99,126.98,7.95595769]
[1764559201896,3.52,126.99,126.97,7.95595769]
[1764559202097,4.24,126.99,126.97,7.95595769]
[1764559202297,4.24,126.99,126.98,7.95595769]
[1764559202685,0.72,126.99,126.98,7.95595769]
[1764559203396,3.52,127.0,126.98,7.95595769]
[1764559203604,0.72,126.99,126.98,7.95595769]
[1764559203899,0.72,126.99,126.96,7.87636413]
[1764559204084,0.72,126.99,126.96,7.95595769]
[1764559204478,0.72,126.99,126.95,7.95595769]
[1764559204678,0.72,126.99,126.96,7.95595769]
[1764559205175,8.5948706,126.99,126.95,7.95595769]
[1764559205590,0.72,126.98,126.95,7.95595769]
[1764559205902,3.52,126.97,126.96,7.95595769]
[1764559206400,4.24,126.97,126.96,7.95595769]
[1764559209099,7.87238873,127.03,126.96,24.45789529]
[1764559209281,7.95595769,127.05,127.02,7.95595769]
[1764559209282,0.72,127.04,127.02,7.95595769]
[1764559209482,7.87140034,127.05,127.03,7.95595769]
[1764559209709,3.52,127.04,127.03,7.95595769]
[1764559210212,16.308864,127.05,127.03,7.95595769]
[1764559210511,0.72,127.08,127.05,7.87091696]
[1764559210808,3.62,127.09,127.07,7.95595769]
[1764559211009,16.308864,127.08,127.07,7.95595769]
[1764559211600,3.62,127.09,127.06,7.95595769]
[1764559211802,16.308864,127.08,127.07,7.95595769]
[1764559212312,19.928864,127.09,127.07,7.95595769]